bitfinex/quotes_BTCUSD_20251001
["timestamp","ask_amount","ask_price","bid_price","bid_amount"]
[1759325722568,0.08985245,116620.0,116610.0,1.21578187]
[1759325722984,0.08985245,116620.0,116610.0,1.21880187]
[1759325723456,0.00046698,116620.0,116610.0,1.21880187]
[1759325723887,0.00046698,116620.0,116610.0,1.24895377]
[1759325724100,0.00046698,116620.0,116610.0,1.60583377]
[1759325724747,0.00011986,116620.0,116610.0,1.60583377]
[1759325725595,0.00011986,116620.0,116610.0,0.54683377]
[1759325725804,0.00011986,116620.0,116610.0,1.60567377]
[1759325726014,0.00011986,116620.0,116610.0,1.57552187]
[1759325726221,0.00011986,116620.0,116610.0,1.57250187]
[1759325726435,0.00011986,116620.0,116610.0,0.51668187]
[1759325726640,0.00011986,116620.0,116610.0,0.51366187]
[1759325726843,0.00011986,116620.0,116610.0,1.57246187]
[1759325727053,0.00011986,116620.0,116610.0,0.51366187]
[1759325727262,0.00011986,116620.0,116610.0,1.57254187]
[1759325727460,0.00011986,116620.0,116610.0,1.57556187]
[1759325727675,0.00011986,116620.0,116610.0,1.57548187]
[1759325728924,0.00011986,116620.0,116610.0,0.51668187]
[1759325729139,0.00011986,116620.0,116610.0,1.57548187]
[1759325729400,0.00011986,116620.0,116610.0,1.60563377]
[1759325729633,0.00011986,116620.0,116610.0,1.69501924]
[1759325729851,0.00011986,116620.0,116610.0,1.60589924]
[1759325730060,0.00011986,116620.0,116610.0,1.24921924]
[1759325730270,0.00011986,116620.0,116610.0,1.69513924]
[1759325731204,0.00011986,116620.0,116610.0,0.63621924]
[1759325731435,0.00011986,116620.0,116610.0,1.69501924]
[1759325734016,0.06947762,116650.0,116640.0,0.17146776]
[1759325734208,0.06947762,116650.0,116640.0,0.53864453]
[1759325734424,0.06947762,116650.0,116640.0,0.86149776]
[1759325734835,0.06947762,116670.0,116660.0,0.51143836]
[1759325735067,0.06994415,116670.0,116660.0,1.12399836]
[1759325735276,0.06994415,116670.0,116660.0,1.12898836]
[1759325735489,0.06994415,116670.0,116660.0,1.12894836]
[1759325735704,0.00046653,116670.0,116660.0,1.57482836]
[1759325736267,0.00046653,116670.0,116660.0,1.60498026]
[1759325736490,0.00046653,116670.0,116660.0,0.63596573]
[1759325736691,0.00046653,116670.0,116660.0,1.69460573]
[1759325737080,0.00046653,116670.0,116660.0,0.63596573]
[1759325737323,0.00046653,116670.0,116660.0,1.69425861]
[1759325737518,0.00046653,116670.0,116660.0,1.60491314]
[1759325737679,0.00046653,116670.0,116660.0,1.60487314]
[1759325738300,0.00046653,116670.0,116660.0,0.54623314]
[1759325738703,0.00046653,116670.0,116660.0,1.60475314]
[1759325739315,0.00046653,116670.0,116660.0,0.89985314]
[1759325739513,0.00256653,116670.0,116660.0,1.57142124]
[1759325739718,0.00046653,116670.0,116660.0,1.57142124]
[1759325740093,0.00256653,116670.0,116660.0,1.57142124]
[1759325740306,0.00046653,116670.0,116660.0,1.60459314]
[1759325740501,0.00046653,116670.0,116660.0,0.54623314]
[1759325740922,0.00046653,116670.0,116660.0,1.60459314]
[1759325741377,0.00046653,116670.0,116660.0,1.48528124]
[1759325741559,0.00046653,116670.0,116660.0,0.51608124]
[1759325741780,0.00256653,116670.0,116660.0,0.51109124]
[1759325742005,0.00567653,116670.0,116660.0,1.56941124]
[1759325742214,0.00046653,116670.0,116660.0,1.57138124]
[1759325742847,0.00046653,116670.0,116660.0,1.57440124]
[1759325743261,0.00046653,116670.0,116660.0,0.51306124]
[1759325743467,0.00567653,116670.0,116660.0,1.56913124]
[1759325743680,0.00256653,116670.0,116660.0,1.56913124]
[1759325743910,0.1771002,116670.0,116660.0,1.31375836]
[1759325744145,0.26648567,116670.0,116660.0,0.80232]
[1759325744365,0.27444537,116670.0,116660.0,0.80232]
[1759325744589,0.17145306,116650.0,116640.0,0.18003929]
[1759325744797,0.09249547,116660.0,116650.0,0.17145306]
[1759325745004,0.00046653,116670.0,116660.0,0.17143836]
[1759325745211,0.089852,116670.0,116660.0,0.42932836]
[1759325745410,0.00046653,116670.0,116660.0,0.42932836]
[1759325745615,0.00046653,116670.0,116660.0,0.43234836]
[1759325745830,0.00046653,116670.0,116660.0,0.42932836]
[1759325747128,0.00046653,116670.0,116660.0,0.78379836]
[1759325747129,0.26648567,116670.0,116660.0,0.78379836]
[1759325747338,0.27445186,116670.0,116660.0,0.87291836]
[1759325747801,0.09991819,116670.0,116660.0,0.87291836]
[1759325748037,0.00843272,116670.0,116660.0,0.87488836]
[1759325748243,0.00843272,116670.0,116660.0,0.87790836]
[1759325748456,0.00843272,116670.0,116660.0,1.21790836]
[1759325748678,0.00046653,116670.0,116660.0,1.21790836]
[1759325748890,0.00046653,116670.0,116660.0,1.24806026]
[1759325751243,0.00046653,116670.0,116660.0,1.33744573]
[1759325753427,5.328e-05,116680.0,116670.0,0.51142367]
[1759325753602,0.00019312,116680.0,116670.0,0.60405914]
[1759325753821,0.00019312,116680.0,116670.0,0.76648914]
[1759325754015,0.0004,116690.0,116680.0,0.51140898]
[1759325754265,0.0004,116690.0,116680.0,0.85948445]
[1759325754473,0.0004,116690.0,116680.0,0.60603445]
[1759325755083,0.0004,116690.0,116680.0,1.66367445]
[1759325755259,0.0004,116690.0,116680.0,1.66359445]
[1759325756080,0.0004,116690.0,116680.0,0.60603445]
[1759325756260,0.0004,116690.0,116680.0,1.66351445]
[1759325758668,0.0004,116690.0,116680.0,1.66383445]
[1759325758882,0.0004,116690.0,116680.0,0.60603445]
[1759325759104,0.0004,116690.0,116680.0,1.40819445]
[1759325759272,0.0004,116690.0,116680.0,1.24501635]
[1759325759488,0.0004,116690.0,116680.0,1.69390635]
[1759325760014,0.0004,116690.0,116680.0,0.63618635]
[1759325760230,0.0004,116690.0,116680.0,1.69386635]
[1759325761509,0.0004,116690.0,116680.0,1.60111088]
[1759325761712,0.00562,116690.0,116680.0,1.31348898]
[1759325761960,0.00562,116690.0,116680.0,1.56888898]
[1759325762168,0.00562,116690.0,116680.0,0.51140898]
[1759325762355,0.00562,116690.0,116680.0,1.12324898]
[1759325762654,0.00245,116690.0,116680.0,1.56884898]
[1759325762880,0.17701429,116690.0,116680.0,0.97348898]
[1759325763148,0.18500834,116690.0,116680.0,0.17140898]
[1759325763360,0.27439381,116690.0,116680.0,0.70092]
[1759325763578,0.17140898,116680.0,116660.0,0.53649027]
[1759325763797,0.2687885,116680.0,116670.0,0.87230367]
[1759325764013,0.2708385,116680.0,116670.0,1.21230367]
[1759325764233,0.2708385,116680.0,116670.0,1.04088]
[1759325764449,0.2740085,116680.0,116670.0,1.21230367]
[1759325765103,0.10259952,116680.0,116670.0,1.21230367]
[1759325765342,0.00799405,116680.0,116670.0,1.21230367]
[1759325765575,0.0004,116690.0,116680.0,0.17140898]
[1759325765800,0.00839722,116690.0,116680.0,0.19179987]
[1759325766041,0.00839722,116690.0,116680.0,0.19378987]
[1759325766257,0.0004,116690.0,116680.0,0.17664898]
[1759325766486,0.0004,116690.0,116680.0,0.54680088]
[1759325766765,0.0004,116690.0,116680.0,0.63618635]
[1759325767884,0.00048568,116700.0,116690.0,0.54154619]
[1759325768117,0.00048568,116700.0,116690.0,0.88609166]
[1759325768329,0.00048568,116700.0,116690.0,0.89133166]
[1759325768557,0.00048568,116700.0,116690.0,0.89979994]
[1759325770286,0.00048568,116700.0,116690.0,0.64463994]
[1759325770499,0.00048568,116700.0,116690.0,1.70167994]
[1759325771372,0.00048568,116700.0,116690.0,1.25595994]
[1759325771576,0.00048568,116700.0,116690.0,0.55525447]
[1759325771805,0.00048568,116700.0,116690.0,1.60892447]
[1759325772013,0.00048568,116700.0,116690.0,0.55525447]
[1759325772219,0.00048568,116700.0,116690.0,1.61225447]
[1759325772645,0.00048568,116700.0,116690.0,1.61221447]
[1759325773112,0.00570568,116700.0,116690.0,0.51986257]
[1759325773329,0.00570568,116700.0,116690.0,0.88427429]
[1759325773537,0.00570568,116700.0,116690.0,0.17139429]
[1759325773965,0.00570568,116700.0,116690.0,1.22819429]
[1759325774168,0.00048568,116700.0,116690.0,1.23343429]
[1759325774856,0.00570568,116700.0,116690.0,1.22819429]
[1759325775099,0.00570568,116700.0,116690.0,0.97335429]
[1759325775319,0.09509115,116700.0,116690.0,1.22827429]
[1759325775771,0.00048568,116700.0,116690.0,1.57026429]
[1759325775994,0.00048568,116700.0,116690.0,1.57351429]
[1759325777354,0.00048568,116700.0,116690.0,1.60366619]
[1759325777571,0.00253568,116700.0,116690.0,0.51139429]
[1759325777795,0.00570568,116700.0,116690.0,1.56827429]
[1759325778009,0.00048568,116700.0,116690.0,1.57026429]
[1759325778231,0.00048568,116700.0,116690.0,1.57351429]
[1759325779969,0.00048568,116700.0,116690.0,0.51663429]
[1759325780188,0.00048568,116700.0,116690.0,1.57022429]
[1759325780402,0.00048568,116700.0,116690.0,1.57341429]
[1759325780631,0.00048568,116700.0,116690.0,1.57345429]
[1759325780845,0.00048568,116700.0,116690.0,1.56819429]
[1759325781281,0.00048568,116700.0,116690.0,1.57016429]
[1759325781492,0.00048568,116700.0,116690.0,1.57335429]
[1759325781708,0.00048568,116700.0,116690.0,1.48427429]
[1759325781945,0.00048568,116700.0,116690.0,1.57335429]
[1759325782379,0.00048568,116700.0,116690.0,1.22427429]
[1759325782380,0.00567568,116700.0,116690.0,1.22427429]
[1759325782603,0.00567568,116700.0,116690.0,0.44552]
[1759325782604,0.26644075,116700.0,116690.0,0.44552]
[1759325783066,0.17139429,116690.0,116670.0,0.5364272]
[1759325783292,0.26077976,116690.0,116680.0,0.87212898]
[1759325783509,0.17140898,116680.0,116670.0,0.1799872]
[1759325783723,0.26077976,116690.0,116680.0,0.44552]
[1759325783949,0.26279976,116690.0,116680.0,0.61692898]
[1759325784192,0.00202,116690.0,116680.0,0.61692898]
[1759325784409,0.18043426,116700.0,116680.0,0.61889898]
[1759325784628,0.00048568,116700.0,116690.0,0.78365371]
[1759325784850,0.00048568,116700.0,116690.0,0.76848429]
[1759325785792,0.00048568,116700.0,116690.0,0.77167429]
[1759325786222,0.00048568,116700.0,116690.0,0.76848429]
[1759325786451,0.00048568,116700.0,116690.0,0.77167429]
[1759325786672,0.00048568,116700.0,116690.0,0.51655429]
[1759325786889,0.00048568,116700.0,116690.0,1.31347429]
[1759325787119,0.00048568,116700.0,116690.0,1.56851429]
[1759325787333,0.00048568,116700.0,116690.0,1.57048429]
[1759325788477,0.00048568,116700.0,116690.0,0.51336429]
[1759325788699,0.00048568,116700.0,116690.0,1.57036429]
[1759325788922,0.00048568,116700.0,116690.0,1.57355429]
[1759325789153,0.00048568,116700.0,116690.0,1.69309166]
[1759325789382,1e-08,116700.0,116690.0,1.75446245]
[1759325789601,1e-08,116710.0,116700.0,0.5113796]
[1759325789829,1e-08,116710.0,116700.0,0.60395507]
[1759325790044,1e-08,116710.0,116700.0,0.60592507]
[1759325791566,1e-08,116710.0,116700.0,0.63607697]
[1759325791805,1e-08,116710.0,116700.0,0.71281701]
[1759325792338,1e-08,116710.0,116700.0,1.76981701]
[1759325792658,1e-08,116710.0,116700.0,0.71281701]
[1759325792873,1e-08,116710.0,116700.0,1.69303697]
[1759325793105,1e-08,116710.0,116700.0,0.71281701]
[1759325793318,1e-08,116710.0,116700.0,1.76977701]
[1759325793549,1e-08,116710.0,116700.0,1.24743697]
[1759325793769,1e-08,116710.0,116700.0,1.69295697]
[1759325794269,1e-08,116710.0,116700.0,1.76969701]
[1759325795057,1e-08,116710.0,116700.0,0.71281701]
[1759325795268,1e-08,116710.0,116700.0,1.75379377]
[1759325795512,1e-08,116710.0,116700.0,0.69719377]
[1759325795747,1e-08,116710.0,116700.0,1.75375377]
[1759325796158,1e-08,116710.0,116700.0,1.69263697]
[1759325797119,1e-08,116710.0,116700.0,1.69247697]
[1759325797337,1e-08,116710.0,116700.0,1.75359122]
[1759325798586,1e-08,116710.0,116700.0,0.63607697]
[1759325798815,1e-08,116710.0,116700.0,1.75338828]
[1759325798964,1e-08,116710.0,116700.0,0.69718828]
[1759325799172,1e-08,116710.0,116700.0,1.30790828]
[1759325799373,1e-08,116710.0,116700.0,0.69718828]
[1759325799590,1e-08,116710.0,116700.0,1.75338828]
[1759325800368,1e-08,116710.0,116700.0,0.69718828]
[1759325800574,1e-08,116710.0,116700.0,1.75003828]
[1759325800802,1e-08,116710.0,116700.0,1.75322828]
[1759325801417,1e-08,116710.0,116700.0,1.69211697]
[1759325802271,1e-08,116710.0,116700.0,1.75322828]
[1759325802432,1e-08,116710.0,116700.0,1.69211697]
[1759325803415,0.00519001,116710.0,116700.0,1.2572515]
[1759325803613,0.00202001,116710.0,116700.0,1.2572515]
[1759325803828,1e-08,116710.0,116700.0,1.5992215]
[1759325804235,1e-08,116710.0,116700.0,1.6024115]
[1759325804905,1e-08,116710.0,116700.0,0.5466915]
[1759325805088,0.00519001,116710.0,116700.0,1.3131796]
[1759325805241,0.00202001,116710.0,116700.0,1.5670996]
[1759325805445,1e-08,116710.0,116700.0,1.5690696]
[1759325805647,1e-08,116710.0,116700.0,1.5722596]
[1759325806067,1e-08,116710.0,116700.0,1.69179697]
[1759325806446,1e-08,116710.0,116700.0,1.75290828]
[1759325807676,1e-08,116710.0,116700.0,1.69179697]
[1759325808688,1e-08,116710.0,116700.0,1.43468697]
[1759325808895,1e-08,116710.0,116700.0,0.69397562]
[1759325809306,1e-08,116710.0,116700.0,1.74965562]
[1759325809527,1e-08,116710.0,116700.0,1.74961562]
[1759325809956,0.00519001,116710.0,116700.0,0.9731796]
[1759325810161,1e-08,116710.0,116700.0,1.2270196]
[1759325810375,1e-08,116710.0,116700.0,1.5721796]
[1759325812106,1e-08,116710.0,116700.0,1.5670596]
[1759325812594,1e-08,116710.0,116700.0,1.5720596]
[1759325813380,1e-08,116710.0,116700.0,0.5163796]
[1759325813576,1e-08,116710.0,116700.0,1.5720596]
[1759325814593,1e-08,116710.0,116700.0,1.75268562]
[1759325815205,1e-08,116710.0,116700.0,1.69159697]
[1759325816493,1e-08,116710.0,116700.0,0.71265701]
[1759325816733,1e-08,116710.0,116700.0,0.70966701]
[1759325816972,1e-08,116710.0,116700.0,0.5435415]
[1759325817179,0.00528001,116710.0,116700.0,1.03441002]
[1759325817413,0.00528001,116710.0,116700.0,1.28821002]
[1759325817638,1e-08,116710.0,116700.0,1.2269796]
[1759325817845,1e-08,116710.0,116700.0,1.2289896]
[1759325818050,1e-08,116710.0,116700.0,0.5133896]
[1759325818265,1e-08,116710.0,116700.0,1.5689896]
[1759325818472,1e-08,116710.0,116700.0,1.5669796]
[1759325818683,1e-08,116710.0,116700.0,1.1264196]
[1759325818905,1e-08,116710.0,116700.0,1.5718596]
[1759325819340,1e-08,116710.0,116700.0,1.63309002]
[1759325820426,1e-08,116710.0,116700.0,1.66324192]
[1759325821293,1e-08,116710.0,116700.0,1.6020115]
[1759325821508,1e-08,116710.0,116700.0,1.69139697]
[1759325821692,1e-08,116710.0,116700.0,1.76813701]
[1759325822099,1e-08,116710.0,116700.0,0.71265701]
[1759325822736,1e-08,116710.0,116700.0,0.70966701]
[1759325822917,1e-08,116710.0,116700.0,1.76293701]
[1759325823120,1e-08,116710.0,116700.0,0.59012964]
[1759325823277,1e-08,116710.0,116700.0,1.64544964]
[1759325823484,1e-08,116710.0,116700.0,1.64843964]
[1759325823692,1e-08,116710.0,116700.0,0.59311964]
[1759325823891,1e-08,116710.0,116700.0,0.5163796]
[1759325824472,0.00528001,116710.0,116700.0,1.03444836]
[1759325824674,0.00528001,116710.0,116700.0,0.23264836]
[1759325824850,1e-08,116710.0,116700.0,1.4775396]
[1759325825074,1e-08,116710.0,116700.0,1.5686296]
[1759325825304,1e-08,116710.0,116700.0,1.63288836]
[1759325825719,1e-08,116710.0,116700.0,1.76789701]
[1759325825920,0.01057628,116720.0,116710.0,0.54151682]
[1759325826128,0.01071604,116720.0,116710.0,0.71043419]
[1759325826340,0.01071604,116720.0,116710.0,0.71244419]
[1759325826989,0.01071604,116720.0,116710.0,1.67542872]
[1759325827442,0.01071604,116720.0,116710.0,0.62006872]
[1759325827695,0.01071604,116720.0,116710.0,1.67534872]
[1759325828326,0.01071604,116720.0,116710.0,1.67833872]
[1759325828787,0.01071604,116720.0,116710.0,1.67534872]
[1759325828983,0.01071604,116720.0,116710.0,0.62006872]
[1759325829178,0.01071604,116720.0,116710.0,1.67522872]
[1759325829406,0.01071604,116720.0,116710.0,1.67821872]
[1759325830366,0.01071604,116720.0,116710.0,1.76760419]
[1759325830558,1e-08,116720.0,116710.0,1.76760419]
[1759325831708,1e-08,116720.0,116710.0,0.71244419]
[1759325831944,1e-08,116720.0,116710.0,1.76776419]
[1759325832400,1e-08,116720.0,116710.0,0.71244419]
[1759325832604,1e-08,116720.0,116710.0,1.33077872]
[1759325832871,0.00214001,116720.0,116710.0,1.2753735]
[1759325833097,1e-08,116720.0,116710.0,1.2879116]
[1759325833327,1e-08,116720.0,116710.0,1.2899216]
[1759325833549,1e-08,116720.0,116710.0,1.6630635]
[1759325833770,1e-08,116720.0,116710.0,1.2339035]
[1759325833995,1e-08,116720.0,116710.0,1.6599935]
[1759325834426,1e-08,116720.0,116710.0,1.6629835]
[1759325835070,0.15328932,116750.0,116740.0,0.17132088]
[1759325835284,0.24481479,116750.0,116740.0,0.51388088]
[1759325835523,0.24481479,116750.0,116740.0,0.87012088]
[1759325835730,0.24481479,116750.0,116730.0,0.17133556]
[1759325835950,0.26283167,116750.0,116740.0,0.87008088]
[1759325836415,0.09152547,116750.0,116740.0,0.87008088]
[1759325836858,0.0004,116760.0,116750.0,0.1713062]
[1759325837083,0.08992521,116760.0,116750.0,0.1713062]
[1759325837325,0.08992521,116760.0,116750.0,0.19044682]
[1759325837541,0.00053974,116760.0,116750.0,0.5163062]
[1759325838007,0.00053974,116760.0,116750.0,1.5714662]
[1759325838214,0.00053974,116760.0,116750.0,0.5163062]
[1759325838424,0.00053974,116760.0,116750.0,1.5714262]
[1759325838638,0.00053974,116760.0,116750.0,1.6015781]
[1759325838857,0.00053974,116760.0,116750.0,1.66276478]
[1759325839080,0.00053974,116760.0,116750.0,0.60764478]
[1759325839293,0.00053974,116760.0,116750.0,1.66276478]
[1759325839503,0.00053974,116760.0,116750.0,1.6015781]
[1759325839716,0.00053974,116760.0,116750.0,1.61032968]
[1759325839942,0.00053974,116760.0,116750.0,0.64459515]
[1759325840187,0.00053974,116760.0,116750.0,1.60564968]
[1759325840620,0.00053974,116760.0,116750.0,1.60764968]
[1759325840833,0.00053974,116760.0,116750.0,0.52205778]
[1759325841039,0.00053974,116760.0,116750.0,1.5667462]
[1759325841433,0.00053974,116760.0,116750.0,0.5133062]
[1759325841662,0.00265974,116760.0,116750.0,1.3130262]
[1759325841883,0.09499521,116760.0,116740.0,0.52764088]
[1759325842090,0.26333674,116760.0,116750.0,0.6167062]
[1759325842294,0.26333674,116760.0,116750.0,0.1713062]
[1759325842501,0.00265974,116760.0,116750.0,1.2107062]
[1759325842741,0.09499521,116760.0,116750.0,0.1713062]
[1759325843026,0.09499521,116760.0,116740.0,0.17132088]
[1759325843027,0.1713062,116750.0,116740.0,0.17132088]
[1759325843236,0.26628674,116760.0,116750.0,0.4454]
[1759325843237,0.26121674,116760.0,116750.0,0.4454]
[1759325843452,0.1734262,116750.0,116740.0,0.52764088]
[1759325843660,0.00212,116750.0,116740.0,1.56716088]
[1759325843876,0.00507,116750.0,116740.0,1.56716088]
[1759325844092,0.00212,116750.0,116740.0,1.56716088]
[1759325844310,0.08992521,116760.0,116750.0,0.1713062]
[1759325844526,0.09204521,116760.0,116750.0,0.18843682]
[1759325844735,0.26333674,116760.0,116750.0,0.1713062]
[1759325844939,0.26628674,116760.0,116740.0,1.56716088]
[1759325845359,0.26628674,116760.0,116750.0,0.1713062]
[1759325846010,0.26628674,116760.0,116750.0,0.8708262]
[1759325846242,0.26628674,116760.0,116740.0,0.51132088]
[1759325846434,0.17395127,116760.0,116750.0,0.69952]
[1759325846642,0.26333674,116760.0,116750.0,0.8708262]
[1759325847063,0.26628674,116760.0,116750.0,0.8708262]
[1759325847389,0.26628674,116760.0,116750.0,0.69952]
[1759325848412,0.1713062,116750.0,116740.0,0.86764088]
[1759325848610,0.26281167,116750.0,116740.0,0.51132088]
[1759325848841,0.26576167,116750.0,116740.0,1.56704088]
[1759325849128,0.26576167,116750.0,116740.0,0.51132088]
[1759325849377,0.26576167,116750.0,116740.0,1.03932]
[1759325849811,0.26576167,116750.0,116740.0,0.51132088]
[1759325850022,0.26576167,116750.0,116740.0,1.21068088]
[1759325850970,0.26576167,116750.0,116740.0,0.34]
[1759325851179,0.26576167,116750.0,116740.0,1.03928]
[1759325851363,0.26576167,116750.0,116740.0,0.9502]
[1759325851504,0.26576167,116750.0,116740.0,0.87052088]
[1759325851707,0.26281167,116750.0,116740.0,0.87052088]
[1759325852412,0.26576167,116750.0,116740.0,0.87052088]
[1759325852869,0.17132088,116740.0,116730.0,0.51133237]
[1759325853073,0.26577635,116740.0,116730.0,1.39544]
[1759325853271,0.26577635,116740.0,116730.0,1.56677556]
[1759325853484,0.26577635,116740.0,116730.0,1.0392]
[1759325853685,0.26577635,116740.0,116730.0,1.21053556]
[1759325853840,0.26577635,116740.0,116730.0,1.0392]
[1759325854265,0.26577635,116740.0,116730.0,0.34]
[1759325854464,0.26577635,116740.0,116730.0,1.21049556]
[1759325854672,0.09150547,116740.0,116730.0,1.21049556]
[1759325855434,0.26282635,116740.0,116730.0,1.21049556]
[1759325855662,0.26577635,116740.0,116730.0,1.21049556]
[1759325856276,0.26577635,116740.0,116730.0,0.51133556]
[1759325856419,0.09445547,116740.0,116730.0,1.21053556]
[1759325856624,0.26577635,116740.0,116730.0,1.21069556]
[1759325856877,0.26577635,116740.0,116730.0,0.34]
[1759325857087,0.26577635,116740.0,116730.0,1.03932]
[1759325857593,0.26577635,116740.0,116730.0,0.59392]
[1759325857802,0.26577635,116740.0,116730.0,1.03932]
[1759325858015,0.17135023,116720.0,116710.0,0.35632]
[1759325858292,0.2658057,116720.0,116710.0,1.22724492]
[1759325858507,0.09445547,116720.0,116710.0,1.22724492]
[1759325858720,0.09445547,116720.0,116710.0,1.56724492]
[1759325858926,0.09150547,116720.0,116710.0,1.56724492]
[1759325859167,0.2658057,116720.0,116710.0,0.34]
[1759325859375,0.2658057,116720.0,116710.0,1.21092492]
[1759325860049,0.09445547,116720.0,116710.0,0.51136492]
[1759325860258,0.2658057,116720.0,116710.0,1.21092492]
[1759325860384,0.2658057,116720.0,116710.0,0.51136492]
[1759325860605,0.1713724,116710.0,116700.0,0.35636]
[1759325860820,0.26582787,116710.0,116700.0,0.00013976]
[1759325861022,0.26582787,116710.0,116700.0,0.69985976]
[1759325861632,0.26582787,116710.0,116700.0,0.00013976]
[1759325862099,0.26582787,116710.0,116700.0,0.69981976]
[1759325862312,0.26582787,116710.0,116700.0,0.00013976]
[1759325862489,0.26582787,116710.0,116700.0,0.69981976]
[1759325863133,0.26582787,116710.0,116700.0,0.00013976]
[1759325863336,0.26582787,116710.0,116700.0,0.44557976]
[1759325863556,0.26582787,116710.0,116700.0,0.69985976]
[1759325863717,0.26582787,116710.0,116700.0,0.00013976]
[1759325863927,0.27381644,116710.0,116700.0,0.10969976]
[1759325864130,0.64396834,116710.0,116700.0,0.00013976]
[1759325864353,0.64396834,116710.0,116700.0,0.09301976]
[1759325864556,0.66896834,116710.0,116700.0,0.34365976]
[1759325865646,0.73329445,116710.0,116700.0,0.34365976]
[1759325865832,0.73329445,116710.0,116700.0,0.25453976]
[1759325866037,0.73329445,116710.0,116700.0,0.34357976]
[1759325866266,0.73329445,116710.0,116700.0,0.00013976]
[1759325866503,0.83329445,116710.0,116700.0,0.25449976]
[1759325867815,0.83329445,116710.0,116700.0,0.00013976]
[1759325867945,0.83329445,116710.0,116700.0,1e-08]
[1759325868146,0.6363796,116700.0,116690.0,0.08908]
[1759325868349,0.73670364,116700.0,116690.0,0.08908]
[1759325868557,0.73882364,116700.0,116690.0,0.08908]
[1759325869118,0.17142367,116670.0,116660.0,0.35644]
[1759325869380,0.26587914,116670.0,116660.0,0.69989984]
[1759325869588,0.26587914,116670.0,116660.0,0.25449984]
[1759325869797,0.26587914,116670.0,116660.0,0.70009984]
[1759325870002,0.26930914,116670.0,116660.0,0.70209984]
[1759325870211,0.27142914,116670.0,116660.0,0.70009984]
[1759325870407,0.27437914,116670.0,116660.0,0.70009984]
[1759325870854,0.28295032,116670.0,116660.0,0.70009984]
[1759325871272,0.28295032,116670.0,116660.0,0.00013984]
[1759325871479,0.28295032,116670.0,116660.0,0.70005984]
[1759325872426,0.28295032,116670.0,116660.0,0.70013984]
[1759325872832,0.28000032,116670.0,116660.0,0.70013984]
[1759325873312,0.28309032,116670.0,116660.0,0.25445984]
[1759325873482,0.28309032,116670.0,116660.0,0.70009984]
[1759325873888,0.28309032,116670.0,116660.0,0.00013984]
[1759325874065,0.28309032,116670.0,116660.0,0.70001984]
[1759325876441,0.28000032,116670.0,116660.0,0.70001984]
[1759325876641,0.26930914,116670.0,116660.0,0.8734782]
[1759325876847,0.26930914,116670.0,116660.0,0.25936984]
[1759325877049,0.27442914,116670.0,116660.0,0.70009984]
[1759325877277,0.27442914,116670.0,116660.0,0.8715382]
[1759325877459,0.27442914,116670.0,116660.0,0.00013984]
[1759325877816,0.27442914,116670.0,116660.0,0.70005984]
[1759325878661,0.27442914,116670.0,116660.0,0.70207984]
[1759325878662,0.27133914,116670.0,116660.0,0.70207984]
[1759325878831,0.27442914,116670.0,116660.0,0.70005984]
[1759325879035,0.27442914,116670.0,116660.0,0.69997984]
[1759325879560,0.17145306,116650.0,116640.0,0.50595753]
[1759325879745,0.09450547,116650.0,116640.0,1.20063124]
[1759325879950,0.26595853,116650.0,116640.0,0.50079124]
[1759325880473,0.26595853,116650.0,116640.0,0.17193429]
[1759325880667,0.26595853,116650.0,116640.0,0.87161429]
[1759325880850,0.09450547,116650.0,116640.0,0.87161429]
[1759325881054,0.08938547,116650.0,116640.0,0.87656429]
[1759325881953,0.4401,116660.0,116650.0,0.17145306]
[1759325882180,0.52948547,116660.0,116650.0,0.19152836]
[1759325882351,0.52908962,116660.0,116650.0,0.1879493]
[1759325882550,0.52908962,116660.0,116650.0,0.170804]
[1759325883081,0.52908962,116660.0,116650.0,0.87104734]
[1759325884712,0.43970415,116660.0,116650.0,0.87104734]
[1759325884916,0.43970415,116660.0,116650.0,1.21104734]
[1759325885602,0.17998916,116690.0,116670.0,0.17141511]
[1759325885767,0.24085722,116700.0,116680.0,0.51662898]
[1759325886012,0.26077976,116690.0,116680.0,0.17635898]
[1759325886211,0.08938547,116690.0,116680.0,0.87627898]
[1759325886416,0.08938547,116690.0,116680.0,0.17648646]
[1759325886690,0.17997482,116710.0,116690.0,0.17139429]
[1759325886907,0.09750487,116710.0,116700.0,0.4277196]
[1759325887051,0.09750487,116710.0,116700.0,0.4306496]
[1759325887254,0.26886979,116710.0,116700.0,0.4306496]
[1759325887459,0.09750487,116710.0,116700.0,0.43077708]
[1759325888084,0.09750487,116710.0,116700.0,0.87665708]
[1759325888287,0.27089979,116710.0,116700.0,0.70032748]
[1759325888501,0.27089979,116710.0,116700.0,0.00012748]
[1759325888709,0.27089979,116710.0,116700.0,0.70032748]
[1759325889085,0.27398979,116710.0,116700.0,0.00012748]
[1759325889292,0.27398979,116710.0,116700.0,0.70028748]
[1759325889500,0.27398979,116710.0,116700.0,0.44580748]
[1759325889729,0.27398979,116710.0,116700.0,0.70040748]
[1759325890766,0.27089979,116710.0,116700.0,0.70040748]
[1759325890993,0.27089979,116710.0,116700.0,0.00012748]
[1759325891193,0.27398979,116710.0,116700.0,0.70044748]
[1759325891660,0.27089979,116710.0,116700.0,0.70044748]
[1759325892037,0.27089979,116710.0,116700.0,0.70040748]
[1759325892444,0.27398979,116710.0,116700.0,0.70040748]
[1759325893430,0.70803347,116710.0,116700.0,0.00012748]
[1759325893683,0.71112347,116710.0,116700.0,0.70040748]
[1759325894096,0.70600347,116710.0,116700.0,0.87380708]
[1759325894342,0.53463855,116710.0,116700.0,1.21673708]
[1759325894760,0.00554893,116710.0,116700.0,1.21673708]
[1759325895182,0.00554893,116710.0,116700.0,0.51645708]
[1759325895384,0.00554893,116710.0,116700.0,1.21653708]
[1759325895930,0.00554893,116710.0,116700.0,0.51645708]
[1759325896150,0.07689954,116720.0,116710.0,0.34]
[1759325896362,0.17136492,116710.0,116700.0,0.78576748]
[1759325896580,0.26075039,116710.0,116700.0,0.51150708]
[1759325896811,0.26278039,116710.0,116700.0,1.04036748]
[1759325897028,0.26278039,116710.0,116700.0,0.34012748]
[1759325897252,0.26587039,116710.0,116700.0,1.04036748]
[1759325898131,0.26278039,116710.0,116700.0,1.04036748]
[1759325898351,0.26278039,116710.0,116700.0,1.04057082]
[1759325900362,0.26075039,116710.0,116700.0,1.21717042]
[1759325900545,0.08938547,116710.0,116700.0,1.21717042]
[1759325901022,0.26286039,116710.0,116700.0,0.00033082]
[1759325901283,0.26593039,116710.0,116700.0,0.70053082]
[1759325901505,0.26286039,116710.0,116700.0,0.87191042]
[1759325901706,0.26075039,116710.0,116700.0,0.87387042]
[1759325901911,0.26075039,116710.0,116700.0,0.87688042]
[1759325902139,0.26286039,116710.0,116700.0,0.87191042]
[1759325902577,0.26286039,116710.0,116700.0,0.70053082]
[1759325902799,0.26286039,116710.0,116700.0,0.00033082]
[1759325903038,0.26286039,116710.0,116700.0,0.87207042]
[1759325903482,0.08938547,116710.0,116700.0,0.87403042]